fUSD/lending_fUSD_20241023
["ID","MTS","AMOUNT","RATE_DAILY","PERIOD"]
[340707423,1729696254957,-500.0,0.00050606,120]
[340707424,1729696254968,-500.0,0.00050606,120]
[340707425,1729696254978,-500.0,0.00050606,120]
[340707426,1729696254988,-1028.07,0.00050606,120]
[340707427,1729696254999,-500.0,0.00050606,120]
[340707428,1729696255010,-500.0,0.00050606,120]
[340707429,1729696255020,-500.0,0.00050606,120]
[340707430,1729696255028,-500.0,0.00050606,120]
[340707431,1729696255037,-500.0,0.00050606,120]
[340707432,1729696255047,-376.48947173,0.00050606,120]
[340707433,1729696255056,-500.0,0.00050606,120]
[340707434,1729696255067,-500.0,0.00050606,120]
[340707435,1729696255076,-500.0,0.00050606,120]
[340707436,1729696255086,-500.0,0.00050606,120]
[340707437,1729696255097,-500.0,0.00050606,120]
[340707438,1729696255107,-500.0,0.00050606,120]
[340707439,1729696255117,-650.47,0.00050606,120]
[340707440,1729696255127,-1207.39,0.00050606,120]
[340707441,1729696255137,-500.0,0.00050606,120]
[340707442,1729696255149,-833.24,0.00050606,120]
[340707443,1729696255158,-2797.06533612,0.00050671,10]
[340707444,1729696255169,-2797.06533612,0.0005068,10]
[340707445,1729696255178,-1000.0,0.00050684,120]
[340707446,1729696255188,-1000.0,0.00050684,120]
[340707447,1729696255198,-1000.0,0.00050684,120]
[340707448,1729696255208,-1000.0,0.00050684,120]
[340707449,1729696255219,-1000.0,0.00050684,120]
[340707450,1729696255230,-500.0,0.0005069,120]
[340707451,1729696255240,-199.0884861,0.0005069,120]
[340707452,1729696255252,-500.0,0.0005069,120]
[340707453,1729696255264,-500.0,0.0005069,120]
[340707454,1729696255273,-500.0,0.0005069,120]
[340707455,1729696255282,-500.0,0.0005069,120]
[340707456,1729696255291,-500.0,0.0005069,120]
[340707457,1729696255301,-500.0,0.0005069,120]
[340707458,1729696255311,-422.76105225,0.0005069,120]
[340707459,1729696255320,-500.0,0.0005069,120]
[340707460,1729696255332,-500.0,0.0005069,120]
[340707461,1729696255341,-500.0,0.0005069,120]
[340707462,1729696255350,-500.0,0.0005069,120]
[340707463,1729696255360,-500.0,0.0005069,120]
[340707464,1729696255372,-500.0,0.0005069,120]
[340707465,1729696255381,-500.0,0.0005069,120]
[340707466,1729696255391,-500.0,0.0005069,120]
[340707467,1729696255401,-500.0,0.0005069,120]
[340707468,1729696255410,-500.0,0.0005069,120]
[340707469,1729696255420,-220.72219879,0.0005069,120]
[340707470,1729696255429,-631.55,0.0005069,120]
[340707471,1729696255438,-500.0,0.0005069,120]
[340707472,1729696255447,-500.0,0.0005069,120]
[340707473,1729696255456,-500.0,0.0005069,120]
[340707474,1729696255466,-500.0,0.0005069,120]
[340707475,1729696255475,-500.0,0.0005069,120]
[340707476,1729696255484,-500.0,0.0005069,120]
[340707477,1729696255494,-500.0,0.0005069,120]
[340707478,1729696255503,-500.0,0.0005069,120]
[340707479,1729696255514,-500.0,0.0005069,120]
[340707480,1729696255524,-500.0,0.0005069,120]
[340707481,1729696255533,-932.92,0.0005069,120]
[340707482,1729696255543,-500.0,0.0005069,120]
[340707483,1729696255552,-1518.46,0.0005069,120]
[340707484,1729696255561,-500.0,0.0005069,120]
[340707485,1729696255571,-500.0,0.0005069,120]
[340707486,1729696255581,-500.0,0.0005069,120]
[340707487,1729696255591,-500.0,0.0005069,120]
[340707488,1729696255601,-616.62,0.0005069,7]
[340707489,1729696255611,-1134.13,0.0005069,60]
[340707490,1729696255620,-500.0,0.0005069,120]
[340707491,1729696255630,-520.02599974,0.0005069,120]
[340707492,1729696255639,-500.0,0.0005069,120]
[340707493,1729696255649,-500.0,0.0005069,120]
[340707494,1729696255659,-500.0,0.0005069,120]
[340707495,1729696255668,-500.0,0.0005069,120]
[340707496,1729696255679,-500.0,0.0005069,120]
[340707497,1729696255688,-500.0,0.0005069,120]
[340707498,1729696255699,-500.0,0.0005069,120]
[340707499,1729696255709,-500.0,0.0005069,120]
[340707500,1729696255718,-500.0,0.0005069,120]
[340707501,1729696255728,-500.0,0.0005069,120]
[340707502,1729696255738,-500.0,0.0005069,120]
[340707503,1729696255748,-519.78889548,0.0005069,120]
[340707504,1729696255760,-599.80675069,0.0005069,120]
[340707505,1729696255769,-500.0,0.0005069,120]
[340707506,1729696255779,-500.0,0.0005069,120]
[340707507,1729696255789,-963.46,0.0005069,120]
[340707508,1729696255799,-976.56,0.0005069,120]
[340707509,1729696255808,-500.0,0.0005069,120]
[340707510,1729696255818,-658.07,0.0005069,120]
[340707511,1729696255827,-500.0,0.0005069,120]
[340707512,1729696255838,-951.13,0.0005069,120]
[340707513,1729696255847,-510.97453965,0.0005069,120]
[340707514,1729696255859,-1201.86,0.0005069,120]
[340707515,1729696255869,-629.96,0.0005069,120]
[340707516,1729696255878,-500.0,0.0005069,120]
[340707517,1729696255888,-1045.98,0.0005069,120]
[340707518,1729696255898,-500.0,0.0005069,120]
[340707519,1729696255908,-500.0,0.0005069,120]
[340707520,1729696255918,-500.0,0.0005069,120]
[340707521,1729696255928,-1058.0,0.00050691,7]
[340707522,1729696255938,-1500.0,0.000507,2]
[340707523,1729696255947,-1487.73,0.00050781,120]
[340707524,1729696255957,-500.0,0.00050781,120]
[340707525,1729696255967,-165.048286,0.00050781,120]
[340707526,1729696255978,-500.0,0.00050781,120]
[340707527,1729696255988,-234.993278,0.00050781,120]
[340707528,1729696255998,-958.81,0.00050781,120]
[340707529,1729696256008,-7538.25,0.00050781,120]
[340707530,1729696256017,-500.0,0.00050781,120]
[340707531,1729696256026,-618.61,0.00050781,120]
[340707532,1729696256036,-500.0,0.00050781,120]
[340707533,1729696256045,-2827.89,0.00050781,21]
[340707534,1729696256055,-775.74,0.00050781,120]
[340707535,1729696256065,-900.97,0.00050781,120]
[340707536,1729696256076,-1263.76,0.00050781,120]
[340707537,1729696256086,-1052.1,0.00050781,120]
[340707538,1729696256095,-518.32,0.00050781,120]
[340707539,1729696256105,-1190.96,0.00050781,120]
[340707540,1729696256115,-500.0,0.00050781,120]
[340707541,1729696256125,-639.92,0.0005079,120]
[340707542,1729696256135,-500.0,0.0005079,120]
[340707543,1729696256144,-1145.77,0.0005079,120]
[340707544,1729696256156,-1096.93,0.0005079,120]
[340707545,1729696256166,-500.0,0.0005079,120]
[340707546,1729696256177,-1101.51,0.0005079,120]
[340707547,1729696256188,-670.28,0.0005079,120]
[340707548,1729696256199,-500.0,0.0005079,120]
[340707549,1729696256210,-500.0,0.0005079,120]
[340707550,1729696256221,-500.0,0.0005079,120]
[340707551,1729696256232,-500.0,0.0005079,120]
[340707552,1729696256242,-657.44,0.0005079,120]
[340707553,1729696256251,-583.84917836,0.0005079,120]
[340707554,1729696256262,-2806.4,0.0005079,120]
[340707555,1729696256271,-500.0,0.0005079,120]
[340707556,1729696256281,-500.0,0.0005079,120]
[340707557,1729696256290,-500.0,0.0005079,120]
[340707558,1729696256300,-1534.31,0.0005079,120]
[340707559,1729696256309,-586.39,0.00050791,120]
[340707560,1729696256319,-500.0,0.00050791,120]
[340707561,1729696256331,-500.0,0.00050791,120]
[340707562,1729696256341,-500.0,0.00050791,120]
[340707563,1729696256350,-500.0,0.00050791,120]
[340707564,1729696256359,-500.0,0.00050791,120]
[340707565,1729696256369,-500.0,0.00050791,120]
[340707566,1729696256379,-500.0,0.00050791,120]
[340707567,1729696256388,-500.0,0.00050791,120]
[340707568,1729696256398,-500.0,0.00050791,120]
[340707569,1729696256408,-500.0,0.00050791,120]
[340707570,1729696256419,-500.0,0.00050791,120]
[340707571,1729696256428,-500.0,0.00050791,120]
[340707572,1729696256437,-500.0,0.00050791,120]
[340707573,1729696256448,-500.0,0.00050791,120]
[340707574,1729696256457,-500.0,0.00050791,120]
[340707575,1729696256468,-500.0,0.00050791,120]
[340707576,1729696256478,-500.0,0.00050791,120]
[340707577,1729696256488,-500.0,0.00050791,120]
[340707578,1729696256497,-181.53973447,0.00050791,120]
[340707579,1729696256508,-500.0,0.00050791,120]
[340707580,1729696256519,-500.0,0.00050791,120]
[340707581,1729696256528,-500.0,0.00050791,120]
[340707582,1729696256538,-500.0,0.00050791,120]
[340707583,1729696256547,-500.0,0.00050791,120]
[340707584,1729696256557,-500.0,0.00050791,120]
[340707585,1729696256567,-500.0,0.00050791,120]
[340707586,1729696256577,-451.29191499,0.00050791,120]
[340707587,1729696256587,-500.0,0.00050791,120]
[340707588,1729696256596,-150.0,0.00050791,120]
[340707589,1729696256606,-500.0,0.00050791,120]
[340707590,1729696256616,-505.37,0.00050791,120]
[340707591,1729696256626,-500.0,0.00050791,120]
[340707592,1729696256636,-643.48058854,0.00050791,120]
[340707593,1729696256646,-554.06,0.00050791,120]
[340707594,1729696256656,-500.0,0.00050791,120]
[340707595,1729696256665,-500.0,0.00050791,120]
[340707596,1729696256674,-512.94,0.00050791,120]
[340707597,1729696256684,-500.0,0.00050791,120]
[340707598,1729696256694,-1145.54,0.00050791,120]
[340707599,1729696256704,-500.0,0.00050791,120]
[340707600,1729696256714,-500.0,0.00050791,120]
[340707601,1729696256724,-500.0,0.00050791,120]
[340707602,1729696256734,-500.0,0.00050791,120]
[340707603,1729696256744,-500.0,0.00050791,120]
[340707604,1729696256754,-500.0,0.00050791,120]
[340707605,1729696256765,-672.92,0.00050791,120]
[340707606,1729696256774,-542.37,0.00050791,120]
[340707607,1729696256784,-500.0,0.00050791,120]
[340707608,1729696256794,-500.0,0.00050791,120]
[340707609,1729696256804,-500.0,0.00050791,120]
[340707610,1729696256814,-922.62,0.00050791,120]
[340707611,1729696256824,-500.0,0.00050791,120]
[340707612,1729696256834,-500.0,0.00050791,120]
[340707613,1729696256844,-500.0,0.00050791,120]
[340707614,1729696256853,-500.0,0.00050791,120]
[340707615,1729696256863,-500.0,0.00050791,120]
[340707616,1729696256873,-500.0,0.00050791,120]
[340707617,1729696256883,-500.0,0.00050791,120]
[340707618,1729696256893,-584.33,0.00050791,120]
[340707619,1729696256903,-500.0,0.00050791,120]
[340707620,1729696256912,-500.0,0.00050791,120]
[340707621,1729696256922,-753.53,0.00050791,120]
[340707622,1729696256932,-393.97158307,0.00050791,120]
[340707623,1729696256942,-500.0,0.00050791,120]
[340707624,1729696256952,-500.0,0.00050791,120]
[340707625,1729696256963,-500.0,0.00050791,120]
[340707626,1729696256972,-500.0,0.00050791,120]
[340707627,1729696256982,-968.55,0.00050791,120]
[340707628,1729696256992,-500.0,0.00050791,120]
[340707629,1729696257002,-500.0,0.00050791,120]
[340707630,1729696257015,-1925.48,0.00050791,120]
[340707631,1729696257027,-1030.77,0.00050791,120]
[340707632,1729696257037,-500.0,0.00050791,120]
[340707633,1729696257046,-500.0,0.00050791,120]
[340707634,1729696257056,-1363.34,0.00050791,120]
[340707635,1729696257067,-500.0,0.00050791,120]
[340707636,1729696257078,-500.0,0.00050791,120]
[340707637,1729696257088,-500.0,0.00050791,120]
[340707638,1729696257098,-500.0,0.00050791,120]
[340707639,1729696257108,-500.0,0.00050791,120]
[340707640,1729696257119,-847.01,0.00050791,120]
[340707641,1729696257129,-500.0,0.00050791,120]
[340707642,1729696257138,-700.02,0.00050791,120]
[340707643,1729696257148,-500.0,0.00050791,120]
[340707644,1729696257158,-278.08016911,0.00050791,120]
[340707645,1729696257167,-622.74,0.00050791,120]
[340707646,1729696257182,-601.0,0.00050791,120]
[340707647,1729696257191,-500.0,0.00050791,120]
[340707648,1729696257201,-1335.55,0.00050791,120]
[340707649,1729696257213,-500.0,0.00050791,120]
[340707650,1729696257223,-500.0,0.00050791,120]
[340707651,1729696257234,-884.17,0.00050791,120]
[340707652,1729696257244,-500.0,0.00050791,120]
[340707653,1729696257254,-500.0,0.00050791,120]
[340707654,1729696257266,-500.0,0.00050791,120]
[340707655,1729696257276,-500.0,0.00050791,120]
[340707656,1729696257286,-500.0,0.00050791,7]
[340707657,1729696257297,-500.0,0.00050791,120]
[340707658,1729696257307,-500.0,0.00050791,120]
[340707659,1729696257317,-500.0,0.00050791,120]
[340707660,1729696257330,-311.27960119,0.00050791,120]
[340707661,1729696257340,-500.0,0.00050791,120]
[340707662,1729696257350,-273.88887727,0.00050791,120]
[340707663,1729696257361,-500.0,0.00050791,120]
[340707664,1729696257371,-500.0,0.00050791,120]
[340707665,1729696257381,-1593.84,0.00050791,120]
[340707666,1729696257391,-500.0,0.00050791,120]
[340707667,1729696257403,-500.0,0.00050791,120]
[340707668,1729696257413,-7480.38243281,0.00050792,2]
[340707669,1729696257422,-700.0,0.000508,18]
[340707670,1729696257432,-835.69,0.00050864,120]
[340707671,1729696257443,-935.08,0.00050864,120]
[340707672,1729696257454,-500.0,0.00050864,120]
[340707673,1729696257464,-500.0,0.00050864,120]
[340707674,1729696257474,-500.0,0.00050864,120]
[340707675,1729696257484,-2535.29,0.00050864,120]
[340707676,1729696257494,-1430.45,0.00050864,120]
[340707677,1729696257504,-2063.97,0.00050864,120]
[340707678,1729696257515,-500.0,0.00050864,120]
[340707679,1729696257525,-500.0,0.00050864,120]
[340707680,1729696257535,-805.45,0.00050864,120]
[340707681,1729696257545,-1202.13,0.00050864,120]
[340707682,1729696257555,-500.0,0.00050865,120]
[340707683,1729696257565,-500.0,0.00050865,120]
[340707684,1729696257576,-1000.0,0.00050865,120]
[340707685,1729696257586,-500.0,0.00050865,120]
[340707686,1729696257596,-500.0,0.00050865,120]
[340707687,1729696257606,-500.0,0.00050865,120]
[340707688,1729696257617,-500.0,0.00050865,120]
[340707689,1729696257627,-313.68740498,0.00050865,120]
[340707690,1729696257639,-496.96200953,0.00050865,14]
[340707691,1729696257649,-500.0,0.00050865,120]
[340707692,1729696257659,-500.0,0.00050865,120]
[340707693,1729696257670,-500.0,0.00050865,120]
[340707694,1729696257680,-500.0,0.00050865,120]
[340707695,1729696257690,-500.0,0.00050865,120]
[340707696,1729696257700,-500.0,0.00050865,120]
[340707697,1729696257711,-500.0,0.00050865,120]
[340707698,1729696257720,-1011.7,0.00050865,120]
[340707699,1729696257731,-500.0,0.00050865,120]
[340707700,1729696257741,-726.23,0.00050865,120]
[340707701,1729696257751,-500.0,0.00050865,120]
[340707702,1729696257762,-426.38716174,0.00050865,120]
[340707703,1729696257773,-500.0,0.00050865,120]
[340707704,1729696257783,-500.0,0.00050865,120]
[340707705,1729696257794,-500.0,0.00050865,120]
[340707706,1729696257804,-500.0,0.00050865,120]
[340707707,1729696257815,-500.0,0.00050865,120]
[340707708,1729696257828,-500.0,0.00050865,120]
[340707709,1729696257838,-407.08499451,0.00050865,120]
[340707710,1729696257848,-500.0,0.00050865,120]
[340707711,1729696257860,-500.0,0.00050865,120]
[340707712,1729696257870,-500.0,0.00050865,120]
[340707713,1729696257880,-500.0,0.00050865,120]
[340707714,1729696257891,-500.0,0.0005088,120]
[340707715,1729696257902,-500.0,0.0005088,120]
[340707716,1729696257913,-1333.47,0.0005088,120]
[340707717,1729696257923,-947.6,0.0005088,120]
[340707718,1729696257932,-500.0,0.0005088,120]
[340707719,1729696257943,-500.0,0.0005088,120]
[340707720,1729696257952,-500.0,0.0005088,120]
[340707721,1729696257962,-1028.07,0.0005088,120]
[340707722,1729696257973,-500.0,0.0005088,120]
[340707723,1729696257983,-500.0,0.0005088,120]
[340707724,1729696257993,-500.0,0.0005088,120]
[340707725,1729696258002,-500.0,0.0005088,120]
[340707726,1729696258013,-500.0,0.0005088,120]
[340707727,1729696258023,-500.0,0.0005088,120]
[340707728,1729696258033,-500.0,0.0005088,120]
[340707729,1729696258044,-500.0,0.0005088,120]
[340707730,1729696258054,-500.0,0.0005088,120]
[340707731,1729696258064,-500.0,0.0005088,120]
[340707732,1729696258074,-500.0,0.0005088,120]
[340707733,1729696258084,-650.47,0.0005088,120]
[340707734,1729696258094,-1207.39,0.0005088,120]
[340707735,1729696258104,-383.85597089,0.0005088,120]
[340707736,1729696258115,-833.24,0.0005088,120]
[340707737,1729696258125,-1000.0,0.000509,18]
[340707738,1729696258134,-500.0,0.00050964,120]
[340707739,1729696258145,-500.0,0.00050964,120]
[340707740,1729696258156,-500.0,0.00050964,120]
[340707741,1729696258167,-500.0,0.00050964,120]
[340707742,1729696258177,-500.0,0.00050964,120]
[340707743,1729696258187,-460.39807314,0.00050964,120]
[340707744,1729696258197,-500.0,0.00050964,120]
[340707745,1729696258207,-500.0,0.00050964,120]
[340707746,1729696258218,-500.0,0.00050964,120]
[340707747,1729696258229,-500.0,0.00050964,120]
[340707748,1729696258239,-500.0,0.00050964,120]
[340707749,1729696258251,-500.0,0.00050964,120]
[340707750,1729696258263,-500.0,0.00050964,120]
[340707751,1729696258274,-500.0,0.00050964,120]
[340707752,1729696258284,-500.0,0.00050964,120]
[340707753,1729696258294,-500.0,0.00050964,120]
[340707754,1729696258304,-283.04937284,0.00050964,120]
[340707755,1729696258316,-631.55,0.00050964,120]
[340707756,1729696258331,-603.19916634,0.00050964,120]
[340707757,1729696258342,-500.0,0.00050964,120]
[340707758,1729696258353,-500.0,0.00050964,120]
[340707759,1729696258363,-500.0,0.00050964,120]
[340707760,1729696258374,-500.0,0.00050964,120]
[340707761,1729696258606,-500.0,0.00050964,120]
[340707762,1729696258616,-500.0,0.00050964,120]
[340707763,1729696258627,-500.0,0.00050964,120]
[340707764,1729696258636,-500.0,0.00050964,120]
[340707765,1729696258646,-500.0,0.00050964,120]
[340707766,1729696258656,-932.92,0.00050964,120]
[340707767,1729696258666,-500.0,0.00050964,120]
[340707768,1729696258675,-1518.46,0.00050964,120]
[340707769,1729696258685,-500.0,0.00050964,120]
[340707770,1729696258695,-500.0,0.00050964,120]
[340707771,1729696258706,-500.0,0.00050964,120]
[340707772,1729696258716,-500.0,0.00050964,120]
[340707773,1729696258726,-616.62,0.00050964,7]
[340707774,1729696258735,-1134.13,0.00050964,60]
[340707775,1729696258745,-500.0,0.00050964,120]
[340707776,1729696258755,-500.0,0.00050964,120]
[340707777,1729696258766,-500.0,0.00050964,120]
[340707778,1729696258775,-500.0,0.00050964,120]
[340707779,1729696258784,-500.0,0.00050964,120]
[340707780,1729696258795,-500.0,0.00050964,120]
[340707781,1729696258804,-500.0,0.00050964,120]
[340707782,1729696258815,-500.0,0.00050964,120]
[340707783,1729696258824,-500.0,0.00050964,120]
[340707784,1729696258834,-500.0,0.00050964,120]
[340707785,1729696258844,-500.0,0.00050964,120]
[340707786,1729696258854,-550.68016186,0.00050964,120]
[340707787,1729696258863,-500.0,0.00050964,120]
[340707788,1729696258873,-500.0,0.00050964,120]
[340707789,1729696258883,-963.46,0.00050964,120]
[340707790,1729696258893,-976.56,0.00050964,120]
[340707791,1729696258903,-500.0,0.00050964,120]
[340707792,1729696258913,-658.07,0.00050964,120]
[340707793,1729696258923,-500.0,0.00050964,120]
[340707794,1729696258933,-951.13,0.00050964,120]
[340707795,1729696258943,-1201.86,0.00050964,120]
[340707796,1729696258953,-629.96,0.00050964,120]
[340707797,1729696258962,-500.0,0.00050964,120]
[340707798,1729696258972,-1045.98,0.00050964,120]
[340707799,1729696258982,-500.0,0.00050964,120]
[340707800,1729696258991,-500.0,0.00050964,120]
[340707801,1729696259001,-500.0,0.00050964,120]
[340707802,1729696259012,-648.66,0.00051,120]
[340707803,1729696259021,-1487.73,0.00051055,120]
[340707804,1729696259031,-500.0,0.00051055,120]
[340707805,1729696259040,-152.467185,0.00051055,120]
[340707806,1729696259050,-165.048286,0.00051055,120]
[340707807,1729696259060,-500.0,0.00051055,120]
[340707808,1729696259069,-234.993278,0.00051055,120]
[340707809,1729696259079,-958.81,0.00051055,120]
[340707810,1729696259089,-7538.25,0.00051055,120]
[340707811,1729696259099,-500.0,0.00051055,120]
[340707812,1729696259109,-618.61,0.00051055,120]
[340707813,1729696259119,-500.0,0.00051055,120]
[340707814,1729696259128,-2827.89,0.00051055,21]
[340707815,1729696259137,-775.74,0.00051055,120]
[340707816,1729696259147,-900.97,0.00051055,120]
[340707817,1729696259156,-1263.76,0.00051055,120]
[340707818,1729696259166,-1052.1,0.00051055,120]
[340707819,1729696259175,-518.32,0.00051055,120]
[340707820,1729696259184,-1190.96,0.00051055,120]
[340707821,1729696259194,-500.0,0.00051055,120]
[340707822,1729696259204,-639.92,0.00051064,120]
[340707823,1729696259213,-500.0,0.00051064,120]
[340707824,1729696259223,-1145.77,0.00051064,120]
[340707825,1729696259232,-1096.93,0.00051064,120]
[340707826,1729696259241,-500.0,0.00051064,120]
[340707827,1729696259251,-1101.51,0.00051064,120]
[340707828,1729696259262,-670.28,0.00051064,120]
[340707829,1729696259272,-500.0,0.00051064,120]
[340707830,1729696259281,-500.0,0.00051064,120]
[340707831,1729696259291,-500.0,0.00051064,120]
[340707832,1729696259301,-500.0,0.00051064,120]
[340707833,1729696259311,-657.44,0.00051064,120]
[340707834,1729696259324,-2806.4,0.00051064,120]
[340707835,1729696259334,-500.0,0.00051064,120]
[340707836,1729696259344,-500.0,0.00051064,120]
[340707837,1729696259353,-500.0,0.00051064,120]
[340707838,1729696259363,-1534.31,0.00051064,120]
[340707839,1729696259374,-586.39,0.00051065,120]
[340707840,1729696259384,-500.0,0.00051065,120]
[340707841,1729696259393,-500.0,0.00051065,120]
[340707842,1729696259404,-500.0,0.00051065,120]
[340707843,1729696259414,-500.0,0.00051065,120]
[340707844,1729696259424,-500.0,0.00051065,120]
[340707845,1729696259433,-500.0,0.00051065,120]
[340707846,1729696259442,-500.0,0.00051065,120]
[340707847,1729696259452,-500.0,0.00051065,120]
[340707848,1729696259462,-500.0,0.00051065,120]
[340707849,1729696259471,-500.0,0.00051065,120]
[340707850,1729696259480,-255.35242719,0.00051065,120]
[340707851,1729696259490,-500.0,0.00051065,120]
[340707852,1729696259500,-500.0,0.00051065,120]
[340707853,1729696259511,-500.0,0.00051065,120]
[340707854,1729696259520,-500.0,0.00051065,120]
[340707855,1729696259530,-500.0,0.00051065,120]
[340707856,1729696259539,-500.0,0.00051065,120]
[340707857,1729696259549,-500.0,0.00051065,120]
[340707858,1729696259559,-500.0,0.00051065,120]
[340707859,1729696259568,-500.0,0.00051065,120]
[340707860,1729696259578,-500.0,0.00051065,120]
[340707861,1729696259588,-500.0,0.00051065,120]
[340707862,1729696259598,-289.34417267,0.00051065,120]
[340707863,1729696259608,-500.0,0.00051065,120]
[340707864,1729696259618,-500.0,0.00051065,120]
[340707865,1729696259627,-500.0,0.00051065,120]
[340707866,1729696259637,-150.0,0.00051065,120]
[340707867,1729696259646,-500.0,0.00051065,120]
[340707868,1729696259656,-314.86396209,0.00051065,120]
[340707869,1729696259666,-505.37,0.00051065,120]
[340707870,1729696259675,-554.06,0.00051065,120]
[340707871,1729696259685,-500.0,0.00051065,120]
[340707872,1729696259695,-500.0,0.00051065,120]
[340707873,1729696259704,-512.94,0.00051065,120]
[340707874,1729696259714,-469.65264809,0.00051065,120]
[340707875,1729696259724,-1145.54,0.00051065,120]
[340707876,1729696259734,-535.31765336,0.00051065,120]
[340707877,1729696259744,-500.0,0.00051065,120]
[340707878,1729696259755,-500.0,0.00051065,120]
[340707879,1729696259765,-270.82476234,0.00051065,120]
[340707880,1729696259775,-500.0,0.00051065,120]
[340707881,1729696259786,-500.0,0.00051065,120]
[340707882,1729696259795,-672.92,0.00051065,120]
[340707883,1729696259805,-542.37,0.00051065,120]
[340707884,1729696259814,-500.0,0.00051065,120]
[340707885,1729696259823,-500.0,0.00051065,120]
[340707886,1729696259833,-500.0,0.00051065,120]
[340707887,1729696259842,-922.62,0.00051065,120]
[340707888,1729696259851,-500.0,0.00051065,120]
[340707889,1729696259861,-500.0,0.00051065,120]
[340707890,1729696259871,-500.0,0.00051065,120]
[340707891,1729696259881,-500.0,0.00051065,120]
[340707892,1729696259890,-500.0,0.00051065,120]
[340707893,1729696259900,-500.0,0.00051065,120]
[340707894,1729696259910,-500.0,0.00051065,120]
[340707895,1729696259919,-584.33,0.00051065,120]
[340707896,1729696259928,-570.53767753,0.00051065,120]
[340707897,1729696259938,-500.0,0.00051065,120]
[340707898,1729696259947,-753.53,0.00051065,120]
[340707899,1729696259957,-500.0,0.00051065,120]
[340707900,1729696259966,-500.0,0.00051065,120]
[340707901,1729696259976,-500.0,0.00051065,120]
[340707902,1729696259985,-500.0,0.00051065,120]
[340707903,1729696259996,-968.55,0.00051065,120]
[340707904,1729696260006,-500.0,0.00051065,120]
[340707905,1729696260016,-500.0,0.00051065,120]
[340707906,1729696260025,-1925.48,0.00051065,120]
[340707907,1729696260035,-1030.77,0.00051065,120]
[340707908,1729696260046,-500.0,0.00051065,120]
[340707909,1729696260056,-500.0,0.00051065,120]
[340707910,1729696260065,-1363.34,0.00051065,120]
[340707911,1729696260074,-352.67601215,0.00051065,120]
[340707912,1729696260084,-500.0,0.00051065,120]
[340707913,1729696260094,-500.0,0.00051065,120]
[340707914,1729696260104,-500.0,0.00051065,120]
[340707915,1729696260114,-500.0,0.00051065,120]
[340707916,1729696260123,-847.01,0.00051065,120]
[340707917,1729696260133,-500.0,0.00051065,120]
[340707918,1729696260143,-700.02,0.00051065,120]
[340707919,1729696260153,-500.0,0.00051065,120]
[340707920,1729696260162,-622.74,0.00051065,120]
[340707921,1729696260172,-500.0,0.00051065,120]
[340707922,1729696260182,-601.0,0.00051065,120]